{"text_format":"1","workbook":"xlsx","n_sheets":1,"sheets":["18 MLB"],"not_rendered":{"charts":0,"images":0,"macros":0,"external_links":0,"defined_names":1,"comments":0,"pivot_tables":0},"unopened":[],"bounds":{"document_bytes":16777216,"sheet_cells":100000,"rows_first":2000,"rows_last":500,"rows_between":2000,"halvings":0,"cell_chars":16384,"cell_head_chars":4096},"cells_cut":0,"cells_raw":0,"read":"whole","date_system":"1900"}

{"sheet":"18 MLB","index":0,"n_rows":34,"n_cols":23,"rows_kept":34,"cut":false,"hidden":false,"merged":[[21,3,21,4],[21,5,21,6],[17,3,17,4],[17,5,17,6],[18,3,18,4],[18,5,18,6],[19,3,19,4],[19,5,19,6],[7,8,7,19],[8,14,8,19],[0,2,0,3],[20,3,20,4],[20,5,20,6],[6,2,6,19]]}
[]
[]
[]
[null,null,"EN Name:",null,null,"Beneficiary's Name:",null,null,null,null,null,null,null,null,"18-Month Look Back Tool"]
[null,null,"PID:",null,null,"SSN:"]
[]
[null,null,"MILESTONE 4"]
[null,null,null,null,null,null,null,null,"MILESTONE 3",null,null,null,null,null,null,null,null,null,null,null,"Enter Ticket Assignment Date in Red Box Below MM/YYYY","Enter Date of Disability Onset in Red Box Below MM/YYYY","Enter Most Recent Date of Successful VR Case Closure in Red Box Below MM/YYYY"]
[null,null,null,null,null,null,null,null,null,null,null,null,null,null,"MILESTONE 2"]
[null,null,null,null,null,null,null,null,null,null,null,null,null,null,null,null,null,null,null,"MILESTONE 1"]
[null,null,{"$f":"IF($V$12>=C12,0,IF(ISBLANK(C13),0,1))","v":0},0,0,0,0,0,0,0,0,0,0,0,0,0,0,0,0,0]
[{"$f":"DATE(YEAR(C12),MONTH(C12)-1,1)","v":"2022-06-01"},null,{"$f":"DATE(YEAR(D12),MONTH(D12)-1,1)","v":"2022-07-01"},"2022-08-01","2022-09-01","2022-10-01","2022-11-01","2022-12-01","2023-01-01","2023-02-01","2023-03-01","2023-04-01","2023-05-01","2023-06-01","2023-07-01","2023-08-01","2023-09-01","2023-10-01","2023-11-01",{"$f":"DATE(YEAR(U12),MONTH(U12)-1,1)","v":"2023-12-01"},"2024-01-01"]
[null,null,null,null,null,null,null,null,null,null,null,null,null,null,null,null,null,null,null,null,"Enter an X below each month with earnings above the Trial Work amount for that year"]
[]
[]
[]
[null,null,null,null,null,null,null,null,null,null,null,null,"Year","TWL","SGA Non-Blind","SGA Blind"]
[null,null,null,"Milestone",null,"Eligible?",null,null,null,null,null,null,2014,770,1070,1800]
[{"$f":"IF(W12>=C12,1,SUM(T11))","v":0},null,null,"Phase 1, MS 1",null,{"$f":"IF(A19>=1,\"No\",\"Yes\")","v":"Yes"},null,null,null,null,null,null,2015,780,1090,1820]
[{"$f":"IF(W12>=C12,3,SUM(O11:T11))","v":0},null,null,"Phase 1, MS 2",null,{"$f":"IF(A20>=3,\"No\",\"Yes\")","v":"Yes"},null,null,null,null,null,null,2016,810,1130,1820]
[{"$f":"IF(W12>=C12,6,SUM(I11:T11))","v":0},null,null,"Phase 1, MS 3",null,{"$f":"IF(A21>=6,\"No\",\"Yes\")","v":"Yes"},null,null,null,null,null,null,2017,840,1170,1950]
[{"$f":"IF(W12>=C12,9,SUM(C11:T11))","v":0},null,null,"Phase 1, MS 4",null,{"$f":"IF(A22>=9,\"No\",\"Yes\")","v":"Yes"},null,null,null,null,null,null,2018,850,1180,1970]
[null,null,null,null,null,null,null,null,null,null,null,null,2019,880,1220,2040]
[null,null,null,null,null,null,null,null,null,null,null,null,2020,910,1260,2110]
[null,null,null,null,null,null,null,null,null,null,null,null,2021,940,1310,2190]
[null,null,null,null,null,null,null,null,null,null,null,null,2022,970,1350,2260]
[null,null,null,null,null,null,null,null,null,null,null,null,2023,1050,1470,2460]
[null,null,null,null,null,null,null,null,null,null,null,null,2024,1110,1550,2590]
[]
[]
[]
[]
[]
[null,null,"EN Signature _____________________________",null,null,null,null,null,"Date ______________________"]